Workbook

Sheet Group A
A1: Frequency Table
A3: SECTION A: GENERAL INFORMATION
A4: Gender
C5: Frequency | D5: Percent | E5: Valid Percent | F5: Cumulative Percent
A6: Valid | B6: Male | C6: 55 | D6: 90.16393443 | E6: 90.16393443 | F6: 90.16393443
B7: Female | C7: 6 | D7: 9.836065574 | E7: 9.836065574 | F7: 100
B8: Total | C8: 61 | D8: 100 | E8: 100
A10: Occupation
C11: Frequency | D11: Percent | E11: Valid Percent | F11: Cumulative Percent
A12: Valid | B12: Project Manager | C12: 5 | D12: 8.196721311 | E12: 8.196721311 | F12: 8.196721311
B13: Contractor Site Manager | C13: 49 | D13: 80.32786885 | E13: 80.32786885 | F13: 88.52459016
B14: Contracting Supervisor | C14: 5 | D14: 8.196721311 | E14: 8.196721311 | F14: 96.72131148
B15: Other | C15: 2 | D15: 3.278688525 | E15: 3.278688525 | F15: 100
B16: Total | C16: 61 | D16: 100 | E16: 100
A18: Education
C19: Frequency | D19: Percent | E19: Valid Percent | F19: Cumulative Percent
A20: Valid | B20: Secondary School | C20: 9 | D20: 14.75409836 | E20: 14.75409836 | F20: 14.75409836
B21: Technical College | C21: 49 | D21: 80.32786885 | E21: 80.32786885 | F21: 95.08196721
B22: First Degree or Diploma | C22: 3 | D22: 4.918032787 | E22: 4.918032787 | F22: 100
B23: Total | C23: 61 | D23: 100 | E23: 100
A25: Engineering
C26: Frequency | D26: Percent | E26: Valid Percent | F26: Cumulative Percent
A27: Valid | B27: Not Selected | C27: 13 | D27: 21.31147541 | E27: 21.31147541 | F27: 21.31147541
B28: Selected | C28: 48 | D28: 78.68852459 | E28: 78.68852459 | F28: 100
B29: Total | C29: 61 | D29: 100 | E29: 100
A31: Construction
C32: Frequency | D32: Percent | E32: Valid Percent | F32: Cumulative Percent
A33: Valid | B33: Not Selected | C33: 37 | D33: 60.6557377 | E33: 60.6557377 | F33: 60.6557377
B34: Selected | C34: 24 | D34: 39.3442623 | E34: 39.3442623 | F34: 100
B35: Total | C35: 61 | D35: 100 | E35: 100
A37: Other_nature_of_business
C38: Frequency | D38: Percent | E38: Valid Percent | F38: Cumulative Percent
A39: Valid | C39: 57 | D39: 93.44262295 | E39: 93.44262295 | F39: 93.44262295
B40: Mining | C40: 1 | D40: 1.639344262 | E40: 1.639344262 | F40: 95.08196721
B41: Pest Control | C41: 1 | D41: 1.639344262 | E41: 1.639344262 | F41: 96.72131148
B42: Recycling Projects | C42: 1 | D42: 1.639344262 | E42: 1.639344262 | F42: 98.36065574
B43: Waste Management | C43: 1 | D43: 1.639344262 | E43: 1.639344262 | F43: 100
B44: Total | C44: 61 | D44: 100 | E44: 100
A46: Number_of_Employees
C47: Frequency | D47: Percent | E47: Valid Percent | F47: Cumulative Percent
A48: Valid | B48: 1-9 | C48: 40 | D48: 65.57377049 | E48: 65.57377049 | F48: 65.57377049
B49: 10-20 | C49: 15 | D49: 24.59016393 | E49: 24.59016393 | F49: 90.16393443
B50: 21-50 | C50: 5 | D50: 8.196721311 | E50: 8.196721311 | F50: 98.36065574
B51: 51-100 | C51: 1 | D51: 1.639344262 | E51: 1.639344262 | F51: 100
B52: Total | C52: 61 | D52: 100 | E52: 100
A54: Years_of_Operation
C55: Frequency | D55: Percent | E55: Valid Percent | F55: Cumulative Percent
A56: Valid | B56: Less than 1 year | C56: 7 | D56: 11.47540984 | E56: 11.47540984 | F56: 11.47540984
B57: 1-5 | C57: 33 | D57: 54.09836066 | E57: 54.09836066 | F57: 65.57377049
B58: 6-10 | C58: 14 | D58: 22.95081967 | E58: 22.95081967 | F58: 88.52459016
B59: 11-15 | C59: 3 | D59: 4.918032787 | E59: 4.918032787 | F59: 93.44262295
B60: 16-20 | C60: 3 | D60: 4.918032787 | E60: 4.918032787 | F60: 98.36065574
B61: 20 Years or More | C61: 1 | D61: 1.639344262 | E61: 1.639344262 | F61: 100
B62: Total | C62: 61 | D62: 100 | E62: 100
A64: Years_in_the_Mining_Industry
C65: Frequency | D65: Percent | E65: Valid Percent | F65: Cumulative Percent
A66: Valid | B66: Less than 1 year | C66: 6 | D66: 9.836065574 | E66: 9.836065574 | F66: 9.836065574
B67: 1-5 | C67: 41 | D67: 67.21311475 | E67: 67.21311475 | F67: 77.04918033
B68: 6-10 | C68: 9 | D68: 14.75409836 | E68: 14.75409836 | F68: 91.80327869
B69: 11-15 | C69: 3 | D69: 4.918032787 | E69: 4.918032787 | F69: 96.72131148
B70: 16-20 | C70: 1 | D70: 1.639344262 | E70: 1.639344262 | F70: 98.36065574
B71: 20 Years or More | C71: 1 | D71: 1.639344262 | E71: 1.639344262 | F71: 100
B72: Total | C72: 61 | D72: 100 | E72: 100
A74: Locality
C75: Frequency | D75: Percent | E75: Valid Percent | F75: Cumulative Percent
A76: Valid | B76: Mokopane Local Company | C76: 57 | D76: 93.44262295 | E76: 93.44262295 | F76: 93.44262295
B77: Not a Mokopane Local Company | C77: 4 | D77: 6.557377049 | E77: 6.557377049 | F77: 100
B78: Total | C78: 61 | D78: 100 | E78: 100
A80: SECTION B: PROJECT HISTORY AND CHALLENGES
A81: Number_of_Projects
C82: Frequency | D82: Percent | E82: Valid Percent | F82: Cumulative Percent | G82: Total No. of Projects | H82: Mean | I82: Max
A83: Valid | B83: 1 | C83: 1 | D83: 1.639344262 | E83: 1.639344262 | F83: 1.639344262 | G83: =B83*C83 -> 1 | H83: 18 | I83: 98
B84: 2 | C84: 2 | D84: 3.278688525 | E84: 3.278688525 | F84: 4.918032787 | G84: =B84*C84 -> 4
B85: 3 | C85: 1 | D85: 1.639344262 | E85: 1.639344262 | F85: 6.557377049 | G85: 3
B86: 4 | C86: 4 | D86: 6.557377049 | E86: 6.557377049 | F86: 13.1147541 | G86: 16
B87: 5 | C87: 4 | D87: 6.557377049 | E87: 6.557377049 | F87: 19.67213115 | G87: 20
B88: 6 | C88: 2 | D88: 3.278688525 | E88: 3.278688525 | F88: 22.95081967 | G88: 12
B89: 8 | C89: 3 | D89: 4.918032787 | E89: 4.918032787 | F89: 27.86885246 | G89: 24
B90: 9 | C90: 3 | D90: 4.918032787 | E90: 4.918032787 | F90: 32.78688525 | G90: 27
B91: 10 | C91: 8 | D91: 13.1147541 | E91: 13.1147541 | F91: 45.90163934 | G91: 80
B92: 11 | C92: 3 | D92: 4.918032787 | E92: 4.918032787 | F92: 50.81967213 | G92: 33
B93: 12 | C93: 3 | D93: 4.918032787 | E93: 4.918032787 | F93: 55.73770492 | G93: 36
B94: 13 | C94: 2 | D94: 3.278688525 | E94: 3.278688525 | F94: 59.01639344 | G94: 26
B95: 14 | C95: 1 | D95: 1.639344262 | E95: 1.639344262 | F95: 60.6557377 | G95: 14
B96: 15 | C96: 3 | D96: 4.918032787 | E96: 4.918032787 | F96: 65.57377049 | G96: 45
B97: 16 | C97: 2 | D97: 3.278688525 | E97: 3.278688525 | F97: 68.85245902 | G97: 32
B98: 17 | C98: 1 | D98: 1.639344262 | E98: 1.639344262 | F98: 70.49180328 | G98: 17
B99: 20 | C99: 4 | D99: 6.557377049 | E99: 6.557377049 | F99: 77.04918033 | G99: 80
B100: 21 | C100: 1 | D100: 1.639344262 | E100: 1.639344262 | F100: 78.68852459 | G100: 21
B101: 25 | C101: 1 | D101: 1.639344262 | E101: 1.639344262 | F101: 80.32786885 | G101: 25
B102: 28 | C102: 1 | D102: 1.639344262 | E102: 1.639344262 | F102: 81.96721311 | G102: 28
B103: 30 | C103: 1 | D103: 1.639344262 | E103: 1.639344262 | F103: 83.60655738 | G103: 30
B104: 32 | C104: 2 | D104: 3.278688525 | E104: 3.278688525 | F104: 86.8852459 | G104: 64
B105: 36 | C105: 1 | D105: 1.639344262 | E105: 1.639344262 | F105: 88.52459016 | G105: 36
B106: 42 | C106: 1 | D106: 1.639344262 | E106: 1.639344262 | F106: 90.16393443 | G106: 42
B107: 45 | C107: 1 | D107: 1.639344262 | E107: 1.639344262 | F107: 91.80327869 | G107: 45
B108: 50 | C108: 1 | D108: 1.639344262 | E108: 1.639344262 | F108: 93.44262295 | G108: 50
B109: 55 | C109: 1 | D109: 1.639344262 | E109: 1.639344262 | F109: 95.08196721 | G109: 55
B110: 56 | C110: 1 | D110: 1.639344262 | E110: 1.639344262 | F110: 96.72131148 | G110: 56
B111: 64 | C111: 1 | D111: 1.639344262 | E111: 1.639344262 | F111: 98.36065574 | G111: 64
B112: 98 | C112: 1 | D112: 1.639344262 | E112: 1.639344262 | F112: 100 | G112: 98
B113: Total | C113: 61 | D113: 100 | E113: 100 | F113: Sum | G113: =SUM(G83:G112) -> 1084
A115: Type_of_Projects
C116: Frequency | D116: Percent | E116: Valid Percent
A117: Valid | B117: Construction | C117: =C$124*D117% -> 15.25 | D117: 25 | E117: 25
B118: Engineering | C118: =C$124*D118% -> 41.48 | D118: 68 | E118: 68
B119: Exploration & Geotecnical drilling | C119: 1.22 | D119: 2 | E119: 2
B120: Mining | C120: 1.22 | D120: 2 | E120: 2
B121: Petrochemical | C121: 1.22 | D121: 2 | E121: 2
B122: Pest Control & Fumigation projects | C122: 1.22 | D122: 2 | E122: 2
B123: Waste Management | C123: 1.22 | D123: 2 | E123: 2
B124: Total | C124: 61 | D124: 100 | E124: 100
A126: Succesful_Projects
C127: Frequency | D127: Percent | E127: Valid Percent | F127: Cumulative Percent | G127: Total No. of successful projects
A128: Valid | B128: 1 | C128: 1 | D128: 1.639344262 | E128: 1.639344262 | F128: 1.639344262 | G128: =B128*C128 -> 1
B129: 2 | C129: 2 | D129: 3.278688525 | E129: 3.278688525 | F129: 4.918032787 | G129: =B129*C129 -> 4
B130: 3 | C130: 1 | D130: 1.639344262 | E130: 1.639344262 | F130: 6.557377049 | G130: 3
B131: 4 | C131: 4 | D131: 6.557377049 | E131: 6.557377049 | F131: 13.1147541 | G131: 16
B132: 5 | C132: 4 | D132: 6.557377049 | E132: 6.557377049 | F132: 19.67213115 | G132: 20
B133: 6 | C133: 3 | D133: 4.918032787 | E133: 4.918032787 | F133: 24.59016393 | G133: 18
B134: 7 | C134: 1 | D134: 1.639344262 | E134: 1.639344262 | F134: 26.2295082 | G134: 7
B135: 8 | C135: 4 | D135: 6.557377049 | E135: 6.557377049 | F135: 32.78688525 | G135: 32
B136: 9 | C136: 3 | D136: 4.918032787 | E136: 4.918032787 | F136: 37.70491803 | G136: 27
B137: 10 | C137: 6 | D137: 9.836065574 | E137: 9.836065574 | F137: 47.54098361 | G137: 60
B138: 11 | C138: 2 | D138: 3.278688525 | E138: 3.278688525 | F138: 50.81967213 | G138: 22
B139: 12 | C139: 4 | D139: 6.557377049 | E139: 6.557377049 | F139: 57.37704918 | G139: 48
B140: 13 | C140: 2 | D140: 3.278688525 | E140: 3.278688525 | F140: 60.6557377 | G140: 26
B141: 14 | C141: 2 | D141: 3.278688525 | E141: 3.278688525 | F141: 63.93442623 | G141: 28
B142: 15 | C142: 3 | D142: 4.918032787 | E142: 4.918032787 | F142: 68.85245902 | G142: 45
B143: 17 | C143: 1 | D143: 1.639344262 | E143: 1.639344262 | F143: 70.49180328 | G143: 17
B144: 20 | C144: 4 | D144: 6.557377049 | E144: 6.557377049 | F144: 77.04918033 | G144: 80
B145: 21 | C145: 1 | D145: 1.639344262 | E145: 1.639344262 | F145: 78.68852459 | G145: 21
B146: 25 | C146: 1 | D146: 1.639344262 | E146: 1.639344262 | F146: 80.32786885 | G146: 25
B147: 28 | C147: 1 | D147: 1.639344262 | E147: 1.639344262 | F147: 81.96721311 | G147: 28
B148: 30 | C148: 1 | D148: 1.639344262 | E148: 1.639344262 | F148: 83.60655738 | G148: 30
B149: 32 | C149: 2 | D149: 3.278688525 | E149: 3.278688525 | F149: 86.8852459 | G149: 64
B150: 36 | C150: 1 | D150: 1.639344262 | E150: 1.639344262 | F150: 88.52459016 | G150: 36
B151: 42 | C151: 1 | D151: 1.639344262 | E151: 1.639344262 | F151: 90.16393443 | G151: 42
B152: 45 | C152: 1 | D152: 1.639344262 | E152: 1.639344262 | F152: 91.80327869 | G152: 45
B153: 50 | C153: 1 | D153: 1.639344262 | E153: 1.639344262 | F153: 93.44262295 | G153: 50
B154: 55 | C154: 1 | D154: 1.639344262 | E154: 1.639344262 | F154: 95.08196721 | G154: 55
B155: 56 | C155: 1 | D155: 1.639344262 | E155: 1.639344262 | F155: 96.72131148 | G155: 56
B156: 64 | C156: 1 | D156: 1.639344262 | E156: 1.639344262 | F156: 98.36065574 | G156: 64
B157: 98 | C157: 1 | D157: 1.639344262 | E157: 1.639344262 | F157: 100 | G157: 98
B158: Total | C158: 61 | D158: 100 | E158: 100 | F158: Sum | G158: =SUM(G128:G157) -> 1068
A160: Unsuccessful_Projects
C161: Frequency | D161: Percent | E161: Valid Percent | F161: Cumulative Percent | G161: Total No. of unsuccessful projects
A162: Valid | B162: 0 | C162: 53 | D162: 86.8852459 | E162: 86.8852459 | F162: 86.8852459 | G162: =B162*C162 -> 0
B163: 1 | C163: 4 | D163: 6.557377049 | E163: 6.557377049 | F163: 93.44262295 | G163: =B163*C163 -> 4
B164: 2 | C164: 2 | D164: 3.278688525 | E164: 3.278688525 | F164: 96.72131148 | G164: 4
B165: 4 | C165: 2 | D165: 3.278688525 | E165: 3.278688525 | F165: 100 | G165: 8
B166: Total | C166: 61 | D166: 100 | E166: 100 | F166: Sum | G166: =SUM(G162:G165) -> 16
A169: Timeous_Delivery
C170: Frequency | D170: Percent | E170: Valid Percent | F170: Cumulative Percent
A171: Valid | B171: Not Selected | C171: 19 | D171: 31.14754098 | E171: 31.14754098 | F171: 31.14754098
B172: Selected | C172: 42 | D172: 68.85245902 | E172: 68.85245902 | F172: 100
B173: Total | C173: 61 | D173: 100 | E173: 100
A175: Project_not_exceeding_the_budget
C176: Frequency | D176: Percent | E176: Valid Percent | F176: Cumulative Percent
A177: Valid | B177: Not Selected | C177: 28 | D177: 45.90163934 | E177: 45.90163934 | F177: 45.90163934
B178: Selected | C178: 33 | D178: 54.09836066 | E178: 54.09836066 | F178: 100
B179: Total | C179: 61 | D179: 100 | E179: 100
A181: Approval_by_the_client
C182: Frequency | D182: Percent | E182: Valid Percent | F182: Cumulative Percent
A183: Valid | B183: Not Selected | C183: 20 | D183: 32.78688525 | E183: 32.78688525 | F183: 32.78688525
B184: Selected | C184: 41 | D184: 67.21311475 | E184: 67.21311475 | F184: 100
B185: Total | C185: 61 | D185: 100 | E185: 100
A187: Deliverance_of_exceptional_service
C188: Frequency | D188: Percent | E188: Valid Percent | F188: Cumulative Percent
A189: Valid | B189: Not Selected | C189: 12 | D189: 19.67213115 | E189: 19.67213115 | F189: 19.67213115
B190: Selected | C190: 49 | D190: 80.32786885 | E190: 80.32786885 | F190: 100
B191: Total | C191: 61 | D191: 100 | E191: 100
A193: Project_planning
C194: Frequency | D194: Percent | E194: Valid Percent | F194: Cumulative Percent
A195: Valid | B195: Not Selected | C195: 27 | D195: 44.26229508 | E195: 44.26229508 | F195: 44.26229508
B196: Selected | C196: 34 | D196: 55.73770492 | E196: 55.73770492 | F196: 100
B197: Total | C197: 61 | D197: 100 | E197: 100
A199: Project_execution
C200: Frequency | D200: Percent | E200: Valid Percent | F200: Cumulative Percent
A201: Valid | B201: Not Selected | C201: 33 | D201: 54.09836066 | E201: 54.09836066 | F201: 54.09836066
B202: Selected | C202: 28 | D202: 45.90163934 | E202: 45.90163934 | F202: 100
B203: Total | C203: 61 | D203: 100 | E203: 100
A205: Project_control_or_performance
C206: Frequency | D206: Percent | E206: Valid Percent | F206: Cumulative Percent
A207: Valid | B207: Not Selected | C207: 25 | D207: 40.98360656 | E207: 40.98360656 | F207: 40.98360656
B208: Selected | C208: 36 | D208: 59.01639344 | E208: 59.01639344 | F208: 100
B209: Total | C209: 61 | D209: 100 | E209: 100
A211: Project_initiation
C212: Frequency | D212: Percent | E212: Valid Percent | F212: Cumulative Percent
A213: Valid | B213: Not Selected | C213: 44 | D213: 72.13114754 | E213: 72.13114754 | F213: 72.13114754
B214: Selected | C214: 17 | D214: 27.86885246 | E214: 27.86885246 | F214: 100
B215: Total | C215: 61 | D215: 100 | E215: 100
A217: Other_phases_that_affect_project_success
C218: Frequency | D218: Percent | E218: Valid Percent | F218: Cumulative Percent
A219: Valid | C219: 60 | D219: 98.36065574 | E219: 98.36065574 | F219: 98.36065574
B220: Mine Safety Administration | C220: 1 | D220: 1.639344262 | E220: 1.639344262 | F220: 100
B221: Total | C221: 61 | D221: 100 | E221: 100
A223: Lack_of_technology
C224: Frequency | D224: Percent | E224: Valid Percent | F224: Cumulative Percent
A225: Valid | B225: Not Selected | C225: 40 | D225: 65.57377049 | E225: 65.57377049 | F225: 65.57377049
... 267 more rows

Sheet Group B
A1: Frequency Table
A3: SECTION A: GENERAL INFORMATION
A4: Gender
C5: Frequency | D5: Percent | E5: Valid Percent | F5: Cumulative Percent
A6: Valid | B6: Male | C6: 43 | D6: 87.75510204 | E6: 87.75510204 | F6: 87.75510204
B7: Female | C7: 6 | D7: 12.24489796 | E7: 12.24489796 | F7: 100
B8: Total | C8: 49 | D8: 100 | E8: 100
A10: Occupation
C11: Frequency | D11: Percent | E11: Valid Percent | F11: Cumulative Percent
A12: Valid | B12: Project Manager | C12: 5 | D12: 10.20408163 | E12: 10.20408163 | F12: 10.20408163
B13: Contractor Site Manager | C13: 35 | D13: 71.42857143 | E13: 71.42857143 | F13: 81.63265306
B14: Contracting Supervisor | C14: 4 | D14: 8.163265306 | E14: 8.163265306 | F14: 89.79591837
B15: Other | C15: 5 | D15: 10.20408163 | E15: 10.20408163 | F15: 100
B16: Total | C16: 49 | D16: 100 | E16: 100
A18: Occupation
C19: Frequency | D19: Percent | E19: Valid Percent | F19: Cumulative Percent
A20: Valid | C20: 44 | D20: 89.79591837 | E20: 89.79591837 | F20: 89.79591837
B21: 2.17.1 Safety Officer | C21: 2 | D21: 4.081632653 | E21: 4.081632653 | F21: 93.87755102
B22: Contruction Manager | C22: 1 | D22: 2.040816327 | E22: 2.040816327 | F22: 95.91836735
B23: Quality & EHS Manager | C23: 2 | D23: 4.081632653 | E23: 4.081632653 | F23: 100
B24: Total | C24: 49 | D24: 100 | E24: 100
A26: Education
C27: Frequency | D27: Percent | E27: Valid Percent | F27: Cumulative Percent
A28: Valid | B28: Secondary School | C28: 6 | D28: 12.24489796 | E28: 12.24489796 | F28: 12.24489796
B29: Technical College | C29: 16 | D29: 32.65306122 | E29: 32.65306122 | F29: 44.89795918
B30: First Degree or Diploma | C30: 25 | D30: 51.02040816 | E30: 51.02040816 | F30: 95.91836735
B31: Masters Degree | C31: 2 | D31: 4.081632653 | E31: 4.081632653 | F31: 100
B32: Total | C32: 49 | D32: 100 | E32: 100
A34: Engineering
C35: Frequency | D35: Percent | E35: Valid Percent | F35: Cumulative Percent
A36: Valid | B36: Not Selected | C36: 15 | D36: 30.6122449 | E36: 30.6122449 | F36: 30.6122449
B37: Selected | C37: 34 | D37: 69.3877551 | E37: 69.3877551 | F37: 100
B38: Total | C38: 49 | D38: 100 | E38: 100
A40: Construction
C41: Frequency | D41: Percent | E41: Valid Percent | F41: Cumulative Percent
A42: Valid | B42: Not Selected | C42: 26 | D42: 53.06122449 | E42: 53.06122449 | F42: 53.06122449
B43: Selected | C43: 23 | D43: 46.93877551 | E43: 46.93877551 | F43: 100
B44: Total | C44: 49 | D44: 100 | E44: 100
A46: Other_nature_of_business
C47: Frequency | D47: Percent | E47: Valid Percent | F47: Cumulative Percent
A48: Valid | C48: 44 | D48: 89.79591837 | E48: 89.79591837 | F48: 89.79591837
B49: Information Technology | C49: 3 | D49: 6.12244898 | E49: 6.12244898 | F49: 95.91836735
B50: IT | C50: 1 | D50: 2.040816327 | E50: 2.040816327 | F50: 97.95918367
B51: Mining | C51: 1 | D51: 2.040816327 | E51: 2.040816327 | F51: 100
B52: Total | C52: 49 | D52: 100 | E52: 100
A54: Number_of_Employees
C55: Frequency | D55: Percent | E55: Valid Percent | F55: Cumulative Percent
A56: Valid | B56: 1-9 | C56: 20 | D56: 40.81632653 | E56: 40.81632653 | F56: 40.81632653
B57: 10-20 | C57: 7 | D57: 14.28571429 | E57: 14.28571429 | F57: 55.10204082
B58: 21-50 | C58: 12 | D58: 24.48979592 | E58: 24.48979592 | F58: 79.59183673
B59: 51-100 | C59: 3 | D59: 6.12244898 | E59: 6.12244898 | F59: 85.71428571
B60: Over 100 | C60: 7 | D60: 14.28571429 | E60: 14.28571429 | F60: 100
B61: Total | C61: 49 | D61: 100 | E61: 100
A63: Years_of_Operation
C64: Frequency | D64: Percent | E64: Valid Percent | F64: Cumulative Percent
A65: Valid | B65: 1-5 | C65: 15 | D65: 30.6122449 | E65: 30.6122449 | F65: 30.6122449
B66: 6-10 | C66: 18 | D66: 36.73469388 | E66: 36.73469388 | F66: 67.34693878
B67: 11-15 | C67: 5 | D67: 10.20408163 | E67: 10.20408163 | F67: 77.55102041
B68: 20 Years or More | C68: 11 | D68: 22.44897959 | E68: 22.44897959 | F68: 100
B69: Total | C69: 49 | D69: 100 | E69: 100
A71: Years_in_the_Mining_Industry
C72: Frequency | D72: Percent | E72: Valid Percent | F72: Cumulative Percent
A73: Valid | B73: Less than 1 year | C73: 2 | D73: 4.081632653 | E73: 4.081632653 | F73: 4.081632653
B74: 1-5 | C74: 15 | D74: 30.6122449 | E74: 30.6122449 | F74: 34.69387755
B75: 6-10 | C75: 17 | D75: 34.69387755 | E75: 34.69387755 | F75: 69.3877551
B76: 11-15 | C76: 3 | D76: 6.12244898 | E76: 6.12244898 | F76: 75.51020408
B77: 16-20 | C77: 1 | D77: 2.040816327 | E77: 2.040816327 | F77: 77.55102041
B78: 20 Years or More | C78: 11 | D78: 22.44897959 | E78: 22.44897959 | F78: 100
B79: Total | C79: 49 | D79: 100 | E79: 100
A81: Locality
C82: Frequency | D82: Percent | E82: Valid Percent | F82: Cumulative Percent
A83: Valid | B83: Mokopane Local Company | C83: 29 | D83: 59.18367347 | E83: 59.18367347 | F83: 59.18367347
B84: Not a Mokopane Local Company | C84: 20 | D84: 40.81632653 | E84: 40.81632653 | F84: 100
B85: Total | C85: 49 | D85: 100 | E85: 100
A87: SECTION B: PROJECT HISTORY AND CHALLENGES
A88: Number_of_Projects
C89: Frequency | D89: Percent | E89: Valid Percent | F89: Cumulative Percent | G89: Total No. of Projects | H89: Mean | I89: Max
A90: Valid | B90: 2 | C90: 1 | D90: 2.040816327 | E90: 2.040816327 | F90: 2.040816327 | G90: =B90*C90 -> 2 | H90: 36 | I90: 100
B91: 4 | C91: 1 | D91: 2.040816327 | E91: 2.040816327 | F91: 4.081632653 | G91: 4
B92: 5 | C92: 3 | D92: 6.12244898 | E92: 6.12244898 | F92: 10.20408163 | G92: 15
B93: 8 | C93: 1 | D93: 2.040816327 | E93: 2.040816327 | F93: 12.24489796 | G93: 8
B94: 10 | C94: 3 | D94: 6.12244898 | E94: 6.12244898 | F94: 18.36734694 | G94: 30
B95: 11 | C95: 1 | D95: 2.040816327 | E95: 2.040816327 | F95: 20.40816327 | G95: 11
B96: 12 | C96: 1 | D96: 2.040816327 | E96: 2.040816327 | F96: 22.44897959 | G96: 12
B97: 13 | C97: 2 | D97: 4.081632653 | E97: 4.081632653 | F97: 26.53061224 | G97: 26
B98: 14 | C98: 1 | D98: 2.040816327 | E98: 2.040816327 | F98: 28.57142857 | G98: 14
B99: 15 | C99: 3 | D99: 6.12244898 | E99: 6.12244898 | F99: 34.69387755 | G99: 45
B100: 16 | C100: 1 | D100: 2.040816327 | E100: 2.040816327 | F100: 36.73469388 | G100: 16
B101: 18 | C101: 2 | D101: 4.081632653 | E101: 4.081632653 | F101: 40.81632653 | G101: 36
B102: 20 | C102: 5 | D102: 10.20408163 | E102: 10.20408163 | F102: 51.02040816 | G102: 100
B103: 22 | C103: 1 | D103: 2.040816327 | E103: 2.040816327 | F103: 53.06122449 | G103: 22
B104: 23 | C104: 1 | D104: 2.040816327 | E104: 2.040816327 | F104: 55.10204082 | G104: 23
B105: 28 | C105: 1 | D105: 2.040816327 | E105: 2.040816327 | F105: 57.14285714 | G105: 28
B106: 30 | C106: 2 | D106: 4.081632653 | E106: 4.081632653 | F106: 61.2244898 | G106: 60
B107: 33 | C107: 1 | D107: 2.040816327 | E107: 2.040816327 | F107: 63.26530612 | G107: 33
B108: 40 | C108: 1 | D108: 2.040816327 | E108: 2.040816327 | F108: 65.30612245 | G108: 40
B109: 42 | C109: 1 | D109: 2.040816327 | E109: 2.040816327 | F109: 67.34693878 | G109: 42
B110: 44 | C110: 1 | D110: 2.040816327 | E110: 2.040816327 | F110: 69.3877551 | G110: 44
B111: 48 | C111: 1 | D111: 2.040816327 | E111: 2.040816327 | F111: 71.42857143 | G111: 48
B112: 50 | C112: 2 | D112: 4.081632653 | E112: 4.081632653 | F112: 75.51020408 | G112: 100
B113: 55 | C113: 1 | D113: 2.040816327 | E113: 2.040816327 | F113: 77.55102041 | G113: 55
B114: 61 | C114: 1 | D114: 2.040816327 | E114: 2.040816327 | F114: 79.59183673 | G114: 61
B115: 63 | C115: 1 | D115: 2.040816327 | E115: 2.040816327 | F115: 81.63265306 | G115: 63
B116: 80 | C116: 1 | D116: 2.040816327 | E116: 2.040816327 | F116: 83.67346939 | G116: 80
B117: 82 | C117: 1 | D117: 2.040816327 | E117: 2.040816327 | F117: 85.71428571 | G117: 82
B118: 86 | C118: 1 | D118: 2.040816327 | E118: 2.040816327 | F118: 87.75510204 | G118: 86
B119: 96 | C119: 1 | D119: 2.040816327 | E119: 2.040816327 | F119: 89.79591837 | G119: 96
B120: 100 | C120: 5 | D120: 10.20408163 | E120: 10.20408163 | F120: 100 | G120: 500
B121: Total | C121: 49 | D121: 100 | E121: 100 | F121: Sum | G121: =SUM(G90:G120) -> 1782
A123: Type_of_Projects
C124: Frequency | D124: Percent | E124: Valid Percent
A125: Valid | B125: Construction | C125: =D125%*C$15 -> 2.05 | D125: 41 | E125: 41
B126: Engineering | C126: 2.3 | D126: 46 | E126: 46
B127: Information Technology | C127: 0.35 | D127: 7 | E127: 7
B128: Exploration & Geotechnical drilling | C128: 0.1 | D128: 2 | E128: 2
B129: Mining | C129: 0.2 | D129: 4 | E129: 4
B130: Tailing | C130: 0.1020408163 | D130: 2.040816327 | E130: 2.040816327
B131: Total | C131: 5 | D131: 100 | E131: 100
A133: Succesful_Projects
C134: Frequency | D134: Percent | E134: Valid Percent | F134: Cumulative Percent | G134: Total No. of projects
A135: Valid | B135: 2 | C135: 1 | D135: 2.040816327 | E135: 2.040816327 | F135: 2.040816327 | G135: =C135*B135 -> 2
B136: 4 | C136: 1 | D136: 2.040816327 | E136: 2.040816327 | F136: 4.081632653 | G136: 4
B137: 5 | C137: 3 | D137: 6.12244898 | E137: 6.12244898 | F137: 10.20408163 | G137: 15
B138: 8 | C138: 1 | D138: 2.040816327 | E138: 2.040816327 | F138: 12.24489796 | G138: 8
B139: 10 | C139: 4 | D139: 8.163265306 | E139: 8.163265306 | F139: 20.40816327 | G139: 40
B140: 12 | C140: 1 | D140: 2.040816327 | E140: 2.040816327 | F140: 22.44897959 | G140: 12
B141: 13 | C141: 2 | D141: 4.081632653 | E141: 4.081632653 | F141: 26.53061224 | G141: 26
B142: 14 | C142: 1 | D142: 2.040816327 | E142: 2.040816327 | F142: 28.57142857 | G142: 14
B143: 15 | C143: 4 | D143: 8.163265306 | E143: 8.163265306 | F143: 36.73469388 | G143: 60
B144: 18 | C144: 2 | D144: 4.081632653 | E144: 4.081632653 | F144: 40.81632653 | G144: 36
B145: 19 | C145: 1 | D145: 2.040816327 | E145: 2.040816327 | F145: 42.85714286 | G145: 19
B146: 20 | C146: 4 | D146: 8.163265306 | E146: 8.163265306 | F146: 51.02040816 | G146: 80
B147: 22 | C147: 1 | D147: 2.040816327 | E147: 2.040816327 | F147: 53.06122449 | G147: 22
B148: 23 | C148: 1 | D148: 2.040816327 | E148: 2.040816327 | F148: 55.10204082 | G148: 23
B149: 28 | C149: 1 | D149: 2.040816327 | E149: 2.040816327 | F149: 57.14285714 | G149: 28
B150: 30 | C150: 2 | D150: 4.081632653 | E150: 4.081632653 | F150: 61.2244898 | G150: 60
B151: 33 | C151: 1 | D151: 2.040816327 | E151: 2.040816327 | F151: 63.26530612 | G151: 33
B152: 35 | C152: 1 | D152: 2.040816327 | E152: 2.040816327 | F152: 65.30612245 | G152: 35
B153: 41 | C153: 1 | D153: 2.040816327 | E153: 2.040816327 | F153: 67.34693878 | G153: 41
B154: 42 | C154: 1 | D154: 2.040816327 | E154: 2.040816327 | F154: 69.3877551 | G154: 42
B155: 48 | C155: 1 | D155: 2.040816327 | E155: 2.040816327 | F155: 71.42857143 | G155: 48
B156: 50 | C156: 3 | D156: 6.12244898 | E156: 6.12244898 | F156: 77.55102041 | G156: 150
B157: 61 | C157: 1 | D157: 2.040816327 | E157: 2.040816327 | F157: 79.59183673 | G157: 61
B158: 63 | C158: 1 | D158: 2.040816327 | E158: 2.040816327 | F158: 81.63265306 | G158: 63
B159: 78 | C159: 1 | D159: 2.040816327 | E159: 2.040816327 | F159: 83.67346939 | G159: 78
B160: 80 | C160: 2 | D160: 4.081632653 | E160: 4.081632653 | F160: 87.75510204 | G160: 160
B161: 96 | C161: 1 | D161: 2.040816327 | E161: 2.040816327 | F161: 89.79591837 | G161: 96
B162: 99 | C162: 1 | D162: 2.040816327 | E162: 2.040816327 | F162: 91.83673469 | G162: 99
B163: 100 | C163: 4 | D163: 8.163265306 | E163: 8.163265306 | F163: 100 | G163: 400
B164: Total | C164: 49 | D164: 100 | E164: 100 | F164: Sum | G164: =SUM(G135:G163) -> 1755
A166: Unsuccessful_Projects
C167: Frequency | D167: Percent | E167: Valid Percent | F167: Cumulative Percent | G167: Total No. of Unsuccessful projects
A168: Valid | B168: 0 | C168: 40 | D168: 81.63265306 | E168: 81.63265306 | F168: 81.63265306 | G168: =B168*C168 -> 0
B169: 1 | C169: 4 | D169: 8.163265306 | E169: 8.163265306 | F169: 89.79591837 | G169: 4
B170: 2 | C170: 1 | D170: 2.040816327 | E170: 2.040816327 | F170: 91.83673469 | G170: 2
B171: 3 | C171: 1 | D171: 2.040816327 | E171: 2.040816327 | F171: 93.87755102 | G171: 3
B172: 5 | C172: 2 | D172: 4.081632653 | E172: 4.081632653 | F172: 97.95918367 | G172: 10
B173: 8 | C173: 1 | D173: 2.040816327 | E173: 2.040816327 | F173: 100 | G173: 8
B174: Total | C174: 49 | D174: 100 | E174: 100 | F174: Sum | G174: =SUM(G168:G173) -> 27
A177: Number_of_Projects
C178: Frequency | D178: Percent | E178: Valid Percent | F178: Cumulative Percent
A179: Valid | B179: 2 | C179: 1 | D179: 2.040816327 | E179: 2.040816327 | F179: 2.040816327
B180: 4 | C180: 1 | D180: 2.040816327 | E180: 2.040816327 | F180: 4.081632653
B181: 5 | C181: 3 | D181: 6.12244898 | E181: 6.12244898 | F181: 10.20408163
B182: 8 | C182: 1 | D182: 2.040816327 | E182: 2.040816327 | F182: 12.24489796
B183: 10 | C183: 3 | D183: 6.12244898 | E183: 6.12244898 | F183: 18.36734694
B184: 11 | C184: 1 | D184: 2.040816327 | E184: 2.040816327 | F184: 20.40816327
B185: 12 | C185: 1 | D185: 2.040816327 | E185: 2.040816327 | F185: 22.44897959
B186: 13 | C186: 2 | D186: 4.081632653 | E186: 4.081632653 | F186: 26.53061224
B187: 14 | C187: 1 | D187: 2.040816327 | E187: 2.040816327 | F187: 28.57142857
B188: 15 | C188: 3 | D188: 6.12244898 | E188: 6.12244898 | F188: 34.69387755
B189: 16 | C189: 1 | D189: 2.040816327 | E189: 2.040816327 | F189: 36.73469388
B190: 18 | C190: 2 | D190: 4.081632653 | E190: 4.081632653 | F190: 40.81632653
B191: 20 | C191: 5 | D191: 10.20408163 | E191: 10.20408163 | F191: 51.02040816
B192: 22 | C192: 1 | D192: 2.040816327 | E192: 2.040816327 | F192: 53.06122449
B193: 23 | C193: 1 | D193: 2.040816327 | E193: 2.040816327 | F193: 55.10204082
B194: 28 | C194: 1 | D194: 2.040816327 | E194: 2.040816327 | F194: 57.14285714
B195: 30 | C195: 2 | D195: 4.081632653 | E195: 4.081632653 | F195: 61.2244898
B196: 33 | C196: 1 | D196: 2.040816327 | E196: 2.040816327 | F196: 63.26530612
B197: 40 | C197: 1 | D197: 2.040816327 | E197: 2.040816327 | F197: 65.30612245
B198: 42 | C198: 1 | D198: 2.040816327 | E198: 2.040816327 | F198: 67.34693878
B199: 44 | C199: 1 | D199: 2.040816327 | E199: 2.040816327 | F199: 69.3877551
B200: 48 | C200: 1 | D200: 2.040816327 | E200: 2.040816327 | F200: 71.42857143
B201: 50 | C201: 2 | D201: 4.081632653 | E201: 4.081632653 | F201: 75.51020408
B202: 55 | C202: 1 | D202: 2.040816327 | E202: 2.040816327 | F202: 77.55102041
B203: 61 | C203: 1 | D203: 2.040816327 | E203: 2.040816327 | F203: 79.59183673
B204: 63 | C204: 1 | D204: 2.040816327 | E204: 2.040816327 | F204: 81.63265306
B205: 80 | C205: 1 | D205: 2.040816327 | E205: 2.040816327 | F205: 83.67346939
B206: 82 | C206: 1 | D206: 2.040816327 | E206: 2.040816327 | F206: 85.71428571
B207: 86 | C207: 1 | D207: 2.040816327 | E207: 2.040816327 | F207: 87.75510204
B208: 96 | C208: 1 | D208: 2.040816327 | E208: 2.040816327 | F208: 89.79591837
B209: 100 | C209: 5 | D209: 10.20408163 | E209: 10.20408163 | F209: 100
B210: Total | C210: 49 | D210: 100 | E210: 100
A212: Type_of_Projects
C213: Frequency | D213: Percent | E213: Valid Percent | F213: Cumulative Percent
A214: Valid | B214: All Mineral Processes | C214: 1 | D214: 2.040816327 | E214: 2.040816327 | F214: 2.040816327
B215: Construction | C215: 12 | D215: 24.48979592 | E215: 24.48979592 | F215: 26.53061224
B216: Construction (Dust Suppression) | C216: 1 | D216: 2.040816327 | E216: 2.040816327 | F216: 28.57142857
B217: Construction & Electrical Works | C217: 1 | D217: 2.040816327 | E217: 2.040816327 | F217: 30.6122449
B218: Construction & Engineering | C218: 1 | D218: 2.040816327 | E218: 2.040816327 | F218: 32.65306122
... 295 more rows

Sheet RELIABILITY TABLES
A1: GROUP A
A2: Research construct | C2: Descriptive statistics | E2: Croncbach's test
B3: Coding | C3: Mean | D3: Standard deviation | E3: Item-Total Correlation | F3: α Value | G3: CR | H3: AVE | I3: Factor loading λ
A4: Barriers of adopting Digital PM tools | B4: SDNAS1 | C4: 3.950819672 | D4: 0.9206198909 | E4: 0.6116680843 | I4: 0.6772464649
B5: SDNAS2 | C5: 4.098360656 | D5: 0.8104508628 | E5: 0.7030578247 | I5: 0.6711406021
B6: SDNAS3 | C6: 3.901639344 | D6: 0.9781771829 | E6: 0.6904791072 | I6: 0.6473039104
B7: SDNAS4 | C7: 4.032786885 | D7: 0.8938160347 | E7: 0.6758139281 | F7: 0.8 | G7: 0.979 | H7: 0.403 | I7: 0.7217718652
B8: SDNAS5 | C8: 4.114754098 | D8: 0.8386171287 | E8: 0.6067338578 | I8: 0.6701605107
B9: SDNAS6 | C9: 4.098360656 | D9: 0.6758924479 | E9: 0.3879269324 | I9: 0.3159685078
B10: SDNAS7 | C10: 4.245901639 | D10: 0.6989453413 | E10: 0.2682106535 | I10: 0.6905104821
B11: SDNAS8 | C11: 3.93442623 | D11: 0.8537925677 | E11: 0.1504867873 | I11: 0.5885266637
C15: λ | D15: λ 2 | E15: 1-λ 2 | F15: CR | G15: AVE
B16: SDNAS1 | C16: 0.6772464649 | D16: =I4*I4 -> 0.4586627742 | E16: =1-D16 -> 0.5413372258 | F16: =SUM(C16:C23)*SUM(C16:C23)/(SUM(C16:C23)*SUM(C16:C23)+E16:E23) -> 0.9786605669 | G16: =SUM(D16:D23)/8 -> 0.4026461284
B17: SDNAS2 | C17: 0.6711406021 | D17: 0.4504297078 | E17: 0.5495702922
B18: SDNAS3 | C18: 0.6473039104 | D18: 0.4190023524 | E18: 0.5809976476
B19: SDNAS4 | C19: 0.7217718652 | D19: 0.5209546254 | E19: 0.4790453746
B20: SDNAS5 | C20: 0.6701605107 | D20: 0.4491151101 | E20: 0.5508848899
B21: SDNAS6 | C21: 0.3159685078 | D21: 0.0998360979 | E21: 0.9001639021
B22: SDNAS7 | C22: 0.6905104821 | D22: 0.4768047259 | E22: 0.5231952741
B23: SDNAS8 | C23: 0.5885266637 | D23: 0.3463636339 | E23: 0.6536363661
A26: Research Construct | C26: Descriptive statistics | E26: Croncbach's test | G26: CR | H26: AVE | I26: Factor loading λ
A27: Readiness to adopt Digital Project Management Tools | B27: Coding | C27: Mean | D27: Standard deviation | E27: Item-Total Correlation | F27: α Value
B28: SDNAS9 | C28: 2.295081967 | D28: 1.054265341 | E28: 0.7602907646 | I28: 0.6524618484
B29: SDNAS10 | C29: 2.327868852 | D29: 1.044370807 | E29: 0.8343516808 | I29: 0.7702318926
B30: SDNAS11 | C30: 2.344262295 | D30: 1.108831906 | E30: 0.8200310676 | I30: 0.7505590807
B31: SDNAS12 | C31: 2.262295082 | D31: 1.031207049 | E31: 0.7873064878 | I31: 0.7618749021
B32: SDNAS13 | C32: 2.131147541 | D32: 0.9394219825 | E32: 0.8490287373 | I32: 0.8036505838
B33: SDNAS14 | C33: 2.131147541 | D33: 0.9742588608 | E33: 0.8170886611 | I33: 0.8086213632
B34: SDNAS15 | C34: 2.081967213 | D34: 1.004905998 | E34: 0.8045564506 | I34: 0.7346038001
B35: SDNAS16 | C35: 2.180327869 | D35: 0.9038472718 | E35: 0.8235665329 | F35: 0.932 | G35: 0.9961157532 | H35: 0.487 | I35: 0.7386581894
B36: SDNAS17 | C36: 2.06557377 | D36: 1.046722702 | E36: 0.8080826629 | I36: 0.7265029966
B37: SDNAS18 | C37: 2.409836066 | D37: 1.116199641 | E37: 0.7278976171 | I37: 0.655347937
B38: SDNAS19 | C38: 2.737704918 | D38: 1.263614384 | E38: 0.3038289115 | I38: 0.3434288714
B39: SDNAS20 | C39: 2.147540984 | D39: 0.9457988788 | E39: 0.7651694918 | I39: 0.6658272145
B40: SDNAS21 | C40: 3.393442623 | D40: 1.158716079 | E40: 0.2704901665 | I40: 0.5566190663
B41: SDNAS22 | C41: 2.950819672 | D41: 1.116933742 | E41: 0.3867928829 | I41: 0.6655506599
C45: λ | D45: λ 2 | E45: 1-λ 2 | F45: CR | G45: AVE
C46: 0.6524618484 | D46: =C46*C46 -> 0.4257064636 | E46: =1-D46 -> 0.5742935364 | F46: =SUM(C46:C59)*SUM(C46:C59)/(SUM(C46:C59)*SUM(C46:C59)+E46:E59) -> 0.9938503951 | G46: =SUM(D46:D59)/14 -> 0.4870769017
C47: 0.7702318926 | D47: 0.5932571683 | E47: 0.4067428317
C48: 0.7505590807 | D48: 0.5633389337 | E48: 0.4366610663
C49: 0.7618749021 | D49: 0.5804533664 | E49: 0.4195466336
C50: 0.8036505838 | D50: 0.6458542609 | E50: 0.3541457391
C51: 0.8086213632 | D51: 0.6538685091 | E51: 0.3461314909
C52: 0.7346038001 | D52: 0.5396427431 | E52: 0.4603572569
C53: 0.7386581894 | D53: 0.5456159207 | E53: 0.4543840793
C54: 0.7265029966 | D54: 0.527806604 | E54: 0.472193396
C55: 0.655347937 | D55: 0.4294809185 | E55: 0.5705190815
C56: 0.3434288714 | D56: 0.1179433897 | E56: 0.8820566103
C57: 0.6658272145 | D57: 0.4433258795 | E57: 0.5566741205
C58: 0.5566190663 | D58: 0.309824785 | E58: 0.690175215
C59: 0.6655506599 | D59: 0.4429576808 | E59: 0.5570423192
